{"text_format":"1","workbook":"xlsx","n_sheets":3,"sheets":["Instrucciones","Data ","Ingreso de Datos"],"not_rendered":{"charts":0,"images":1,"macros":1,"external_links":0,"defined_names":0,"comments":0,"pivot_tables":0},"unopened":[],"bounds":{"document_bytes":16777216,"sheet_cells":100000,"rows_first":2000,"rows_last":500,"rows_between":2000,"halvings":0,"cell_chars":16384,"cell_head_chars":4096},"cells_cut":0,"cells_raw":0,"read":"whole","date_system":"1900"}

{"sheet":"Instrucciones","index":0,"n_rows":35,"n_cols":9,"rows_kept":35,"cut":false,"hidden":false,"merged":[[13,1,13,14],[14,1,14,14],[15,1,15,14],[4,1,4,14],[5,1,5,14],[6,1,6,14],[7,1,7,14],[8,1,8,14],[9,1,9,14],[10,1,10,14],[11,1,11,14],[12,1,12,14],[16,1,16,14],[17,1,17,14],[19,1,19,14],[20,1,20,14],[21,1,21,14],[23,1,23,14],[24,1,24,14],[25,2,25,13],[26,2,26,13],[29,1,29,14],[30,1,30,7],[30,8,30,14],[31,1,31,7],[31,8,31,14],[32,1,32,7],[32,8,32,14]]}
[]
[null,"Herramienta de Riesgo de la Cobertura Forestal"]
[null,"(Borrador para periodo de comentarios públicos)"]
[]
[null,"INTRODUCCIÓN"]
[null,"Bajo la el Protocolo Forestal para México V2.0, la Reserva únicamente registrará proyectos que generen remociones de GEI que se determine sean adicionales a lo que hubiera sucedido en ausencia del mercado de carbono. Junto con las consideraciones legales,  la Prueba del Estándar de Desempeño evalúa criterios relacionados con la actividad del proyecto para identificar que el financiamiento de carbono proporciona un elemento importante para contrarrestar los riesgos de deforestación y degradación en el Área de Actividad. "]
[null,"\nLos impulsores de la deforestación y degradación pueden ser complejos. Esta herramienta supone que ciertas características regulatorias (por ej., limitaciones en el aprovechamiento), económicas (por ej., acceso a mercados), sociales (por ej., niveles de población) y biofísicas (por ej., características del suelo) pueden aumentar o disminuir el riesgo de deforestación y degradación forestal en un Área de Actividad.\n"]
[]
[null,"DESCRIPCIÓN"]
[null,"La herramienta se divide en tres secciones. La primera sección está relacionada con el manejo forestal sustentable. Si un Área de Actividad tiene un Programa de Manejo Forestal autorizado por la SEMARNAT, el Área de Actividad pasa la Prueba del Estándar de Desempeño. "]
[null,"Si no se cuenta con un PMF, se deberán de completar las Secciones 2 a la 5. Las preguntas de estas secciones están relacionadas con restricciones legales, actividades agropecuarias y presiones urbanas. "]
[null,"La herramienta asume que existe una renta potencial asociada a cada posible uso de suelo de cada terreno, es decir, la tierra tenderá a dedicarse a la actividad que produce la renta más alta. Bajo estas consideraciones la herramienta se basa en un análisis de literatura donde se asume que*:"]
[null,"1. El fácil acceso a mercados aumenta el riesgo de conversión. Un estudio del Banco Mundial indica que cuando el acceso al camino es inmediato y el tiempo de traslado es de 1 min, existe una probabilidad del 63% de uso agrícola, de la cual el 49.2% sería con fines comerciales y 13.2% de semi-subsistencia. Si existe una distancia mayor a 10 km al camino más cercano, existe una probabilidad del 98% de que la tierra mantenga su cobertura natural. Si existe agricultura, esta será principalmente de subsistencia. "]
[null,"\n2. El riesgo de conversión es mayor cuando las prácticas agropecuarias se llevan a cabo con fines comerciales. Cuando hay un aumento en el precio de los productos, el riesgo de conversión es mayor. El estudio del Banco Mundial indica que un aumento del 1% en el precio de los productos agrícolas puede aumentar la probabilidad de deforestación en un 0.24%. \n"]
[null,"3.  Áreas de Actividad cerca de ciudades extensas tienen un mayor riesgo de conversión de expansión y desarrollo urbano que aquellas en zonas rurales. "]
[null,"4. Aquellas áreas que reciben subsidios agropecuarios, el riesgo de conversión es más alto."]
[null,"5. En cuanto a las características biofísicas, es más probable que en un terreno con poca pendiente se lleven a cabo actividades agrícolas, en comparación con una mayor pendiente. "]
[null,"6. En áreas previamente degradadas, es necesario financiar actividades puntuales de manejo para restaurar estas área y volverlas más resilientes a eventos naturales como incendios, plagas y huracanes. "]
[]
[null,"El Dueño Forestal deberá de responder las Secciones 2 a la 5. Si se considera que el Área de Actividad aún no pasa la Prueba del Estándar de Desempeño, deberá de continuar con la Sección 6, que está relacionada con la degradación del área. El Dueño Forestal deberá de utilizar los lineamientos proporcionados en el PFM V2.0 para calcular la cobertura de copa del Área de Actividad, la cual deberá de ingresarse en esta hoja de cálculo."]
[null,"La Herramienta compara la cobertura de copa del Área de Actividad con valores por defecto de cobertura de copa en ecosistemas naturales en México. "]
[null,"* Información obtenida de World Bank (1995) Roads, Lands, Markets and Deforestation. Policy Research Department. Environment, Infrastructure and Agriculutre Division. "]
[]
[null,"REQUISITOS"]
[null,"Antes de proceder favor de tomar en cuenta las siguientes consideraciones."]
[null,null," Las Áreas de Actividad de Reforestación, Sistemas Agroforestales, Sistemas Silvopastoriles y  Bosques Urbanos Grandes están exentas del uso de esta herramienta."]
[null,null," Las respuestas deberán de ser lo más conservadoras posibles y reflejar la realidad del sitio. Las respuestas serán verificada durante la primera verificación. Si las respuestas no coinciden con la realidad se deberá de volver a realizar el ejercicio para asegurar que el Área de Actividad cumple con la Prueba del Estándar de Desempeño del PFM V2.0"]
[]
[]
[null,"INSTRUCCIONES"]
[null,"\nPaso 1. Identificar si el Área de Actividad está exenta de utilizar esta herramienta\n",null,null,null,null,null,null," Las Áreas de Actividad de Reforestación, Sistemas Agroforestales, Sistemas Silvopastoriles y  Bosques Urbanos Grandes están exentas del uso de esta herramienta."]
[null,"Paso 2.  Responder las preguntas en el orden pre-establecido. ",null,null,null,null,null,null,"Cada pregunta tiene un botón que brinda más información para poder identificar la respuesta más adecuada. Si en el Área de Actividad no aplica alguna de las preguntas, favor de seleccionar No aplica.   "]
[null,"Paso 3. Revisar si el proyecto pasa la Prueba del Estándar de Desempeño. ",null,null,null,null,null,null,"Se considera que un Área de Actividad pasa la Prueba del Estándar de Desempeño si se cumple con los criterios de esta Herramienta"]
[]
[null,"Si se tienen cualquier pregunta o comentario favor de mandar un correo a policy@climateactionreserve.org"]

{"sheet":"Data ","index":1,"n_rows":66,"n_cols":13,"rows_kept":66,"cut":false,"hidden":true,"merged":[[1,1,1,3],[13,1,13,3],[37,1,37,3]]}
[]
[null,"Manejo Forestal y Estatus de Protección "]
[]
[null,"Manejo Forestal y Proteccion","Valores",null,null,"Largo plazo","Valor",null,"Seccion 2, 3 y 4"]
["Si","Programa de Manejo Forestal",2,null,null,"Sin Protección",0,null,{"$f":"-0.5+C9+C11+C26+C29+C32+C35+C48+C51+C59+C66","v":-0.5}]
["No","Protección Largo Plazo",2,null,null,"Bajo Protección",-0.5]
[null,"Protección Corto Plazo",2]
[null,null,null,null,null,"Corto plazo","Valor"]
[null,"Valor sin PMF, protección a largo plazo",{"$f":"IF(C6=1,G6,G5)","v":0},null,null,"Sin Protección",0]
[null,null,null,null,null,"Bajo Protección",-0.25]
[null,"Valor sin PMF, protección a corto plazo",{"$f":"IF(C7=1,G10,G9)","v":0}]
[]
[]
[null,"Condiciones del Area de Actividad"]
[null,null,null,null,null,"Values",1,2,3,4,5,6,7]
[null,"Tiempo","Tamano de Poblacion",null,null,"Tiempo/Habitantes","< 2,499","2,500 - 29,999","30,000 - 99,999","100,000 - 249,999","250,000 - 499,999","> 500,000","No Aplica"]
[null,"0 15 min","< 2,499",null,null,"0 15 min",2.5000000000000001E-2,0.05,0.2,0.3,0.4,0.5,0]
[null,"15 a 60 min","2,500 - 29,999",null,null,"16 to 60",{"$f":"G17/3","v":8.3333333333333332E-3},{"$f":"H17/3","v":1.6666666666666666E-2},6.6666666666666666E-2,9.9999999999999992E-2,0.13333333333333333,0.16666666666666666,0]
[null,"1 a 2 horas","30,000 - 99,999",null,null,"61 to 120",{"$f":"G18/4","v":2.0833333333333333E-3},{"$f":"H18/4","v":4.1666666666666666E-3},1.6666666666666666E-2,2.4999999999999998E-2,3.3333333333333333E-2,4.1666666666666664E-2,0]
[null,"2 a 5 horas","100,000 - 249,999",null,null,"Mas 2 horas",{"$f":"G19/5","v":4.1666666666666664E-4},{"$f":"H19/5","v":8.3333333333333328E-4},3.3333333333333331E-3,4.9999999999999992E-3,6.6666666666666662E-3,8.3333333333333332E-3,0]
[null,null,"250,000 - 499,999"]
[null,null,"> 500,000"]
[null,null,"No aplica"]
[]
[null,"Tamano poblacion/ 0 - 15",7]
[null,"Valor",{"$f":"HLOOKUP(C25,G15:M20,3,0)","v":0}]
[]
[null,"Tamaño poblacion/ 16-60",7]
[null,"Valor",{"$f":"HLOOKUP(C28,G15:M20,4,0)","v":0}]
[]
[null,"Tamaño poblacion/ 61-120",7]
[null,"Valor",{"$f":"HLOOKUP(C31,G15:M20,5,0)","v":0}]
[]
[null,"Tamaño poblacion/ 121-180",7]
[null,"Valor",{"$f":"HLOOKUP(C34,G15:M20,6,0)","v":0}]
[]
[]
[null,"Actividades Agropecuarias"]
[]
[null,"Tipo de Agricultura","Precios ","Subsidios",null,"Tipo de Agricultura/Precios","Subsistencia","Disminuido","Mantenido Igual","Aumentado"]
[null,"Subsistencia","No aplica/ subsistencia","Si ",null,"Subsistencia",0,-0.2,{"$f":"H41/2","v":-0.1},0]
[null,"Comercial","Disminuido","No",null,"Comercial",0,0,{"$f":"J42/2","v":0.2},0.4]
[null,"No aplica","Mantenido Igual","No Aplica"]
[null,null,"Aumentado",null,null,"Subsidios",null,null,"Expansion Urbana",null,"Poblacion Alta, cerca","Poblacion baja, lejos"]
[null,null,null,null,null,"Con Subsidio",-0.1,null,"Si",{"$f":"IF(AND(C26>=I17,C29>=J18),K45,L45)","v":0.3},0.6,{"$f":"K45/2","v":0.3}]
[null,"Tipo de Agricultura",3,null,null,"Sin Subsidio",0,null,"No",0]
[null,"Precios",1]
[null,"Valor",{"$f":"VLOOKUP(C47&\"-\"&C46,J49:K60,2,0)","v":0},null,null,"Precios ","Precios ","Tipo de Agricultura","Tipo de Agricultura","Unique","Multiplier"]
[null,null,null,null,null,"Subsistencia",1,"Subsistencia",1,{"$f":"G49&\"-\"&I49","v":"1-1"},{"$f":"G41","v":0}]
[null,"Subsidio",3,null,null,"Disminuido",2,"Subsistencia",1,{"$f":"G50&\"-\"&I50","v":"2-1"},{"$f":"H41","v":-0.2}]
[null,"Valor",{"$f":"IF(C50=1,G45,G46)","v":0},null,null,"Mantenido Igual",3,"Subsistencia",1,"3-1",{"$f":"I41","v":-0.1}]
[null,null,null,null,null,"Aumentado",4,"Subsistencia",1,"4-1",{"$f":"J41","v":0}]
[null,"Pendiente",null,null,null,"Subsistencia",1,"Comercial",2,"1-2",{"$f":"G42","v":0}]
[null,"Plano",null,null,null,"Disminuido",2,"Comercial",2,"2-2",{"$f":"H42","v":0}]
[null,"Media",null,null,null,"Mantenido Igual",3,"Comercial",2,"3-2",{"$f":"I42","v":0.2}]
[null,"Empinado",null,null,null,"Aumentado",4,"Comercial",2,"4-2",{"$f":"J42","v":0.4}]
[null,null,null,null,null,"Subsistencia",1,"NA",3,"1-3",0]
[null,"Pendiente",2,null,null,"Disminuido",2,"NA",3,"2-3",0]
[null,"Valor",{"$f":"(VLOOKUP(C58,G63:H66,2,0))","v":0},null,null,"Mantenido Igual",3,"NA",3,"3-3",0]
[null,null,null,null,null,"Aumentado",4,"NA",3,"4-3",0]
[null,"Expansión Urbana"]
[null,"Si",null,null,null,"Pendiente","Unique","Multiplier"]
[null,"No",null,null,null,"Plano",1,0.1]
[null,null,null,null,null,"Media",2,0]
[null,"Expansión Urbana",2,null,null,"Empinado",3,-0.2]
[null,"Valor",{"$f":"IF(C65=1,J45,J46)","v":0}]

{"sheet":"Ingreso de Datos","index":2,"n_rows":28,"n_cols":14,"rows_kept":28,"cut":false,"hidden":false,"merged":[[19,17,19,25],[20,17,20,25],[22,1,22,9],[19,1,19,6],[20,1,20,6],[1,17,1,25],[5,14,5,22],[15,1,16,6],[14,17,16,25],[1,12,1,16],[1,1,1,9],[14,9,14,10],[14,7,14,8],[14,11,14,12],[14,13,14,14],[2,1,2,11],[8,1,8,11],[27,1,27,11],[5,1,5,6],[6,1,6,6],[25,1,25,6],[21,1,21,6]]}
["Sección 1",null," - Aprovechamiento Maderable en el Área de Actividad"]
[1,"¿El Área de Actividad está bajo un Programa de Manejo Forestal activo autorizado por la SEMARNAT?"]
[null,{"$f":"IF('Data '!C5=1,\"El Area de Actividad cumple con la Prueba del Estándar de Desempeño, no es necesario continuar con el cuestionario\",\"Favor de continuar con el cuestionario\")","v":"Favor de continuar con el cuestionario"}]
[]
["Sección 2 - Estado de Protección del Área de Actividad"]
[2.1,"¿El Área de Actividad está bajo algún esquema de protección a largo plazo que NO permita el aprovechamiento comercial (por ej., Parque Nacional, Veda Forestal)? "]
[2.2000000000000002,"¿El Área de Actividad está bajo algún esquema de protección temporal que NO permita el aprovechamiento comercial (por ej., Programa de Pago por Servicios Ambientales de CONAFOR)? "]
[]
[null,{"$f":"IF('Data '!C5=1,\"El Área de Actividad pasa la Prueba del Estándar de Desempeño\",IF('Data '!C6=1,\"El Área de Actividad NO pasa la Prueba del Estándar de Desempeño para AA de Restauración, considerar actividades de reforestación o sistemas agroforetales/silvopastoriles en áreas no forestales\",\"Favor de continuar con el cuestionario\"))","v":"Favor de continuar con el cuestionario"}]
[]
[]
[]
[]
["Sección 3 - Condiciones del Área de Actividad"]
[null,null,null,null,null,null,null,"0 - 15 Minutos",null,"16 - 60 Minutos",null,"61 - 120 Minutos",null,"> 2 horas "]
[3.1," Favor de estimar el tamaño de la población, según el tiempo correspondiente que tardaría una persona en llegar del camino más cercano al Área de Actividad al poblado identificado"]
[]
[]
["Sección 4 - Riesgo de cambio de uso de suelo de forestal a no forestal por actividades agropecuarias (responder si aplica)"]
[4.0999999999999996,"¿Las actividades agropecuarias que se llevan a cabo fuera del AA (considerando un radio de 1 km del límite geográfico definido) son con fines de subsistencia o comerciales?"]
[4.2,"Si las actividades agropecuarias son con FINES COMERCIALES, ¿el precio del producto principal ha incrementado, mantenido igual o disminuido en el último año?"]
[4.3,"¿Las actividades agropecuarias que se llevan a cabo fuera de las AA (considerando un radio de 1 km del límite geográfico definido y dentro del predio del Dueño Forestal) reciben subsidios del gobierno para llevar a cabo actividades agrícolas o pecuarias?"]
[4.4000000000000004,"¿Cómo se caracteriza la pendiente en el Área de Actividad?"]
[]
["Sección 5  - Riesgo de cambio de uso de suelo de forestal a no forestal por expansión urbana (responder si aplica)"]
[5.0999999999999996,"¿Existe riesgo de cambio de uso de suelo por el crecimiento urbano en el Área de Proyecto?"]
[]
[null,{"$f":"IF('Data '!C5=1,\"El Área de Actividad pasa la Prueba del Estándar de Desempeño\",IF('Data '!C6=1,\"El Área de Actividad NO pasa la Prueba del Estándar de Desempeño para AA de Restauración, considerar actividades de reforestación o sistemas agroforetales/silvopastoriles en áreas no forestales\",IF('Data '!I5>0,\"El Área de Actividad pasa la Prueba del Estándar de desempeño\",\"El Área de Actividad NO pasa la Prueba del Estándar de Desempeño para AA de Restauración, considerar actividades de reforestación o sistemas agroforetales/silvopastoriles en áreas no forestales\")))","v":"El Área de Actividad NO pasa la Prueba del Estándar de Desempeño para AA de Restauración, considerar actividades de reforestación o sistemas agroforetales/silvopastoriles en áreas no forestales"}]